[Event "Titled Tuesday Blitz August 22 Early 2023"]
[White "Melnichuk, Mikhail"]
[Black "Ardila, Oscar Humberto"]
[WhiteFideId "14117533"]
[BlackFideId "4404742"]
[WhiteElo "2482"]
[BlackElo "2332"]
[Result "1/2-1/2"]
[Round "4"]
[TimeControl "180+1"]
[Date "2023.08.22"]
[WhiteClock "0:00:12"]
[BlackClock "0:00:03"]
[Board "183"]

1. Nf3 {[%clk 0:02:57]}  Nf6 {[%clk 0:02:59]} 2. c4 {[%clk 0:02:57]}  e6 {[%clk 0:02:59]} 3. d4 {[%clk 0:02:54]}  d5 {[%clk 0:02:58]} 4. Nc3 {[%clk 0:02:51]}  Be7 {[%clk 0:02:57]} 5. Bf4 {[%clk 0:02:49]}  c6 {[%clk 0:02:57]} 6. e3 {[%clk 0:02:49]}  O-O {[%clk 0:02:57]} 7. Rc1 {[%clk 0:02:48]}  Nbd7 {[%clk 0:02:57]} 8. Qc2 {[%clk 0:02:48]}  b6 {[%clk 0:02:50]} 9. cxd5 {[%clk 0:02:39]}  exd5 {[%clk 0:02:49]} 10. Bd3 {[%clk 0:02:37]}  Bb7 {[%clk 0:02:48]} 11. O-O {[%clk 0:02:36]}  Rc8 {[%clk 0:02:47]} 12. Rfd1 {[%clk 0:02:33]}  Re8 {[%clk 0:02:47]} 13. h3 {[%clk 0:02:32]}  h6 {[%clk 0:02:46]} 14. a3 {[%clk 0:02:32]}  Nf8 {[%clk 0:02:15]} 15. Ne5 {[%clk 0:02:25]}  Ne6 {[%clk 0:02:12]} 16. Bh2 {[%clk 0:02:23]}  Bd6 {[%clk 0:02:12]} 17. b4 {[%clk 0:02:07]}  Ng5 {[%clk 0:02:04]} 18. Bf5 {[%clk 0:02:01]}  Ne6 {[%clk 0:01:53]} 19. Qb3 {[%clk 0:01:36]}  a6 {[%clk 0:01:47]} 20. a4 {[%clk 0:01:23]}  Qe7 {[%clk 0:01:44]} 21. Rb1 {[%clk 0:01:21]}  Nd7 {[%clk 0:01:27]} 22. Nxd7 {[%clk 0:00:38]}  Qxd7 {[%clk 0:01:27]} 23. Bxd6 {[%clk 0:00:38]}  Qxd6 {[%clk 0:01:27]} 24. b5 {[%clk 0:00:37]}  axb5 {[%clk 0:01:26]} 25. axb5 {[%clk 0:00:37]}  c5 {[%clk 0:01:22]} 26. dxc5 {[%clk 0:00:29]}  Rxc5 {[%clk 0:01:22]} 27. Ne4 {[%clk 0:00:25]}  Qe5 {[%clk 0:01:22]} 28. Nxc5 {[%clk 0:00:22]}  Nxc5 {[%clk 0:01:22]} 29. Qc2 {[%clk 0:00:21]}  g6 {[%clk 0:01:16]} 30. Bxg6 {[%clk 0:00:19]}  Qg7 {[%clk 0:01:05]} 31. Bf5 {[%clk 0:00:09]}  d4 {[%clk 0:01:01]} 32. e4 {[%clk 0:00:07]}  d3 {[%clk 0:00:58]} 33. Rxd3 {[%clk 0:00:06]}  Nxd3 {[%clk 0:00:58]} 34. Qxd3 {[%clk 0:00:06]}  Kh8 {[%clk 0:00:57]} 35. Qe3 {[%clk 0:00:06]}  Rg8 {[%clk 0:00:56]} 36. g3 {[%clk 0:00:05]}  Qf6 {[%clk 0:00:49]} 37. Qf4 {[%clk 0:00:04]}  Rd8 {[%clk 0:00:41]} 38. Re1 {[%clk 0:00:04]}  Qg5 {[%clk 0:00:31]} 39. Qxg5 {[%clk 0:00:04]}  hxg5 {[%clk 0:00:31]} 40. Kg2 {[%clk 0:00:03]}  Rd2 {[%clk 0:00:29]} 41. Rc1 {[%clk 0:00:03]}  Kg7 {[%clk 0:00:24]} 42. Rc7 {[%clk 0:00:03]}  Ba8 {[%clk 0:00:25]} 43. Ra7 {[%clk 0:00:03]}  Rd8 {[%clk 0:00:23]} 44. Ra6 {[%clk 0:00:03]}  Rb8 {[%clk 0:00:23]} 45. Ra7 {[%clk 0:00:03]}  Kf6 {[%clk 0:00:22]} 46. Rc7 {[%clk 0:00:03]}  Re8 {[%clk 0:00:19]} 47. h4 {[%clk 0:00:04]}  gxh4 {[%clk 0:00:18]} 48. gxh4 {[%clk 0:00:03]}  Bxe4+ {[%clk 0:00:18]} 49. Bxe4 {[%clk 0:00:04]}  Rxe4 {[%clk 0:00:19]} 50. Rc6+ {[%clk 0:00:05]}  Ke5 {[%clk 0:00:18]} 51. Rxb6 {[%clk 0:00:04]}  Rxh4 {[%clk 0:00:18]} 52. Rb8 {[%clk 0:00:04]}  Rb4 {[%clk 0:00:18]} 53. Kf3 {[%clk 0:00:04]}  Kf5 {[%clk 0:00:17]} 54. Ke3 {[%clk 0:00:03]}  Rb3+ {[%clk 0:00:18]} 55. Kd4 {[%clk 0:00:04]}  Rb2 {[%clk 0:00:18]} 56. Rb7 {[%clk 0:00:03]}  f6 {[%clk 0:00:17]} 57. Ke3 {[%clk 0:00:04]}  Rb3+ {[%clk 0:00:17]} 58. Ke2 {[%clk 0:00:04]}  Kf4 {[%clk 0:00:17]} 59. b6 {[%clk 0:00:03]}  Rb2+ {[%clk 0:00:17]} 60. Ke1 {[%clk 0:00:03]}  f5 {[%clk 0:00:15]} 61. Rb8 {[%clk 0:00:03]}  Kf3 {[%clk 0:00:15]} 62. Kd1 {[%clk 0:00:03]}  f4 {[%clk 0:00:12]} 63. b7 {[%clk 0:00:03]}  Kxf2 {[%clk 0:00:11]} 64. Rf8 {[%clk 0:00:03]}  Rxb7 {[%clk 0:00:11]} 65. Rxf4+ {[%clk 0:00:04]}  Ke3 {[%clk 0:00:11]} 66. Ra4 {[%clk 0:00:04]}  Rd7+ {[%clk 0:00:11]} 67. Kc2 {[%clk 0:00:03]}  Rc7+ {[%clk 0:00:11]} 68. Kb3 {[%clk 0:00:03]}  Rc1 {[%clk 0:00:11]} 69. Rc4 {[%clk 0:00:03]}  Rb1+ {[%clk 0:00:10]} 70. Kc3 {[%clk 0:00:03]}  Rc1+ {[%clk 0:00:09]} 71. Kb4 {[%clk 0:00:03]}  Rb1+ {[%clk 0:00:09]} 72. Kc5 {[%clk 0:00:04]}  Kd3 {[%clk 0:00:09]} 73. Rd4+ {[%clk 0:00:04]}  Ke3 {[%clk 0:00:10]} 74. Rc4 {[%clk 0:00:04]}  Ra1 {[%clk 0:00:09]} 75. Rb4 {[%clk 0:00:04]}  Kd3 {[%clk 0:00:09]} 76. Rb3+ {[%clk 0:00:04]}  Kc2 {[%clk 0:00:08]} 77. Rb4 {[%clk 0:00:05]}  Kc3 {[%clk 0:00:07]} 78. Rc4+ {[%clk 0:00:05]}  Kd3 {[%clk 0:00:08]} 79. Rd4+ {[%clk 0:00:05]}  Ke3 {[%clk 0:00:08]} 80. Rb4 {[%clk 0:00:06]}  Rc1+ {[%clk 0:00:08]} 81. Kb5 {[%clk 0:00:06]}  Rc8 {[%clk 0:00:07]} 82. Rh4 {[%clk 0:00:06]}  Kd3 {[%clk 0:00:07]} 83. Kb6 {[%clk 0:00:07]}  Rc1 {[%clk 0:00:05]} 84. Kb5 {[%clk 0:00:06]}  Rb1+ {[%clk 0:00:05]} 85. Kc5 {[%clk 0:00:07]}  Rc1+ {[%clk 0:00:05]} 86. Kd5 {[%clk 0:00:08]}  Ra1 {[%clk 0:00:03]} 87. Rh3+ {[%clk 0:00:08]}  Ke2 {[%clk 0:00:03]} 88. Rh2+ {[%clk 0:00:09]}  Kf3 {[%clk 0:00:04]} 89. Rh3+ {[%clk 0:00:09]}  Kf4 {[%clk 0:00:04]} 90. Rb3 {[%clk 0:00:10]}  Rd1+ {[%clk 0:00:03]} 91. Kc4 {[%clk 0:00:10]}  Rc1+ {[%clk 0:00:03]} 92. Rc3 {[%clk 0:00:11]}  Rxc3+ {[%clk 0:00:03]} 93. Kxc3 {[%clk 0:00:12]} 1/2-1/2


[Site "https://www.chess.com"]

[Event "Titled Tuesday Blitz August 22 Early 2023"]
[White "kaanadayhamle"]
[Black "Fernandez Lopez, Ruben"]
[BlackFideId "24518298"]
[WhiteElo "2327"]
[BlackElo "2478"]
[Result "1-0"]
[Round "4"]
[TimeControl "180+1"]
[Date "2023.08.22"]
[WhiteClock "0:00:10"]
[BlackClock "0:01:30"]
[Board "186"]

1. Nf3 {[%clk 0:03:00]}  b6 {[%clk 0:02:57]} 2. g3 {[%clk 0:03:01]}  Bb7 {[%clk 0:02:58]} 3. Bg2 {[%clk 0:03:01]}  e6 {[%clk 0:02:58]} 4. O-O {[%clk 0:03:02]}  Nf6 {[%clk 0:02:59]} 5. c4 {[%clk 0:03:02]}  Be7 {[%clk 0:03:00]} 6. Nc3 {[%clk 0:03:03]}  O-O {[%clk 0:03:00]} 7. d4 {[%clk 0:03:04]}  d5 {[%clk 0:03:00]} 8. Ne5 {[%clk 0:03:03]}  Nbd7 {[%clk 0:03:00]} 9. f4 {[%clk 0:03:03]}  c5 {[%clk 0:02:58]} 10. e3 {[%clk 0:03:03]}  Qc7 {[%clk 0:02:57]} 11. cxd5 {[%clk 0:03:03]}  Nxd5 {[%clk 0:02:57]} 12. Nxd5 {[%clk 0:03:02]}  Bxd5 {[%clk 0:02:57]} 13. Bxd5 {[%clk 0:03:02]}  exd5 {[%clk 0:02:58]} 14. Bd2 {[%clk 0:03:02]}  cxd4 {[%clk 0:02:57]} 15. exd4 {[%clk 0:03:03]}  Nf6 {[%clk 0:02:57]} 16. Rc1 {[%clk 0:03:02]}  Qb7 {[%clk 0:02:57]} 17. Qb3 {[%clk 0:02:54]}  Ne4 {[%clk 0:02:56]} 18. Rfd1 {[%clk 0:02:30]}  Rac8 {[%clk 0:02:56]} 19. Bb4 {[%clk 0:02:24]}  Bxb4 {[%clk 0:02:50]} 20. Qxb4 {[%clk 0:02:25]}  f6 {[%clk 0:02:50]} 21. Nd3 {[%clk 0:02:18]}  Qa6 {[%clk 0:02:50]} 22. Qb3 {[%clk 0:02:14]}  Rc4 {[%clk 0:02:45]} 23. Nb4 {[%clk 0:01:56]}  Qa5 {[%clk 0:02:25]} 24. Nxd5 {[%clk 0:01:37]}  Rxc1 {[%clk 0:02:24]} 25. Rxc1 {[%clk 0:01:26]}  Qd2 {[%clk 0:02:24]} 26. Rc2 {[%clk 0:00:16]}  Qxd4+ {[%clk 0:02:20]} 27. Kg2 {[%clk 0:00:16]}  Kh8 {[%clk 0:02:20]} 28. Qc4 {[%clk 0:00:16]}  Qxc4 {[%clk 0:02:14]} 29. Rxc4 {[%clk 0:00:17]}  Nc5 {[%clk 0:02:14]} 30. b4 {[%clk 0:00:17]}  Ne6 {[%clk 0:02:14]} 31. Re4 {[%clk 0:00:16]}  Re8 {[%clk 0:02:10]} 32. Kf3 {[%clk 0:00:16]}  Kg8 {[%clk 0:02:09]} 33. h4 {[%clk 0:00:14]}  Kf7 {[%clk 0:02:09]} 34. f5 {[%clk 0:00:14]}  Nd8 {[%clk 0:02:06]} 35. Rxe8 {[%clk 0:00:13]}  Kxe8 {[%clk 0:02:05]} 36. Ke4 {[%clk 0:00:13]}  Kd7 {[%clk 0:02:04]} 37. Nf4 {[%clk 0:00:13]}  Nf7 {[%clk 0:02:02]} 38. Nh5 {[%clk 0:00:12]}  Nd6+ {[%clk 0:01:58]} 39. Kf4 {[%clk 0:00:11]}  Kc6 {[%clk 0:01:48]} 40. Nxg7 {[%clk 0:00:11]}  Kb5 {[%clk 0:01:48]} 41. g4 {[%clk 0:00:11]}  Kxb4 {[%clk 0:01:48]} 42. g5 {[%clk 0:00:12]}  fxg5+ {[%clk 0:01:47]} 43. hxg5 {[%clk 0:00:13]}  a5 {[%clk 0:01:47]} 44. f6 {[%clk 0:00:13]}  a4 {[%clk 0:01:47]} 45. Ne6 {[%clk 0:00:13]}  a3 {[%clk 0:01:45]} 46. Nd4 {[%clk 0:00:11]}  Kc3 {[%clk 0:01:45]} 47. Nb5+ {[%clk 0:00:06]}  Nxb5 {[%clk 0:01:45]} 48. f7 {[%clk 0:00:07]}  Nd4 {[%clk 0:01:41]} 49. Ke5 {[%clk 0:00:07]}  Nf3+ {[%clk 0:01:38]} 50. Kf6 {[%clk 0:00:07]}  Nd2 {[%clk 0:01:34]} 51. f8=Q {[%clk 0:00:07]}  Kb2 {[%clk 0:01:34]} 52. Qb4+ {[%clk 0:00:07]}  Kxa2 {[%clk 0:01:34]} 53. Qxd2+ {[%clk 0:00:07]}  Kb3 {[%clk 0:01:35]} 54. Qc1 {[%clk 0:00:07]}  a2 {[%clk 0:01:36]} 55. Qa1 {[%clk 0:00:08]}  b5 {[%clk 0:01:36]} 56. Kg7 {[%clk 0:00:08]}  b4 {[%clk 0:01:36]} 57. Kxh7 {[%clk 0:00:09]}  Ka3 {[%clk 0:01:37]} 58. g6 {[%clk 0:00:09]}  b3 {[%clk 0:01:38]} 59. Qc1+ {[%clk 0:00:10]}  b2 {[%clk 0:01:30]} 60. Qc3+ {[%clk 0:00:10]} 1-0


[Site "https://www.chess.com"]

[Event "Titled Tuesday Blitz August 22 Early 2023"]
[White "Itkis, Boris"]
[Black "Afanasieva, Alexandra"]
[WhiteFideId "1209167"]
[BlackFideId "34126926"]
[WhiteElo "2477"]
[BlackElo "2323"]
[Result "1-0"]
[Round "4"]
[TimeControl "180+1"]
[Date "2023.08.22"]
[WhiteClock "0:01:29"]
[BlackClock "0:00:02"]
[Board "187"]

1. c4 {[%clk 0:03:00]}  e6 {[%clk 0:02:59]} 2. Nf3 {[%clk 0:03:01]}  d5 {[%clk 0:02:59]} 3. e3 {[%clk 0:03:02]}  Nf6 {[%clk 0:02:59]} 4. b3 {[%clk 0:03:01]}  c5 {[%clk 0:02:58]} 5. Bb2 {[%clk 0:03:01]}  Nc6 {[%clk 0:02:58]} 6. cxd5 {[%clk 0:03:01]}  exd5 {[%clk 0:02:57]} 7. Bb5 {[%clk 0:02:59]}  Bg4 {[%clk 0:02:55]} 8. O-O {[%clk 0:02:57]}  Bd6 {[%clk 0:02:54]} 9. d4 {[%clk 0:02:57]}  cxd4 {[%clk 0:02:47]} 10. Bxd4 {[%clk 0:02:49]}  O-O {[%clk 0:02:46]} 11. Bb2 {[%clk 0:02:47]}  Qe7 {[%clk 0:02:33]} 12. Nbd2 {[%clk 0:02:45]}  Rad8 {[%clk 0:02:29]} 13. h3 {[%clk 0:02:44]}  Bh5 {[%clk 0:02:29]} 14. Rc1 {[%clk 0:02:38]}  Ne4 {[%clk 0:02:19]} 15. Be2 {[%clk 0:02:28]}  Rfe8 {[%clk 0:01:48]} 16. Nd4 {[%clk 0:02:27]}  Bxe2 {[%clk 0:01:37]} 17. Qxe2 {[%clk 0:02:21]}  Nxd4 {[%clk 0:01:13]} 18. Bxd4 {[%clk 0:02:22]}  b6 {[%clk 0:00:55]} 19. Nxe4 {[%clk 0:02:12]}  Qxe4 {[%clk 0:00:56]} 20. Qf3 {[%clk 0:02:08]}  Qg6 {[%clk 0:00:34]} 21. Rfd1 {[%clk 0:02:03]}  h6 {[%clk 0:00:24]} 22. Kf1 {[%clk 0:02:03]}  Re4 {[%clk 0:00:15]} 23. Rc6 {[%clk 0:01:58]}  Qe6 {[%clk 0:00:09]} 24. Bb2 {[%clk 0:01:51]}  f6 {[%clk 0:00:04]} 25. Ba3 {[%clk 0:01:42]}  Qe7 {[%clk 0:00:04]} 26. Bxd6 {[%clk 0:01:28]}  Rxd6 {[%clk 0:00:05]} 27. Rxd6 {[%clk 0:01:28]}  Qxd6 {[%clk 0:00:02]} 28. Qxe4 {[%clk 0:01:29]} 1-0


[Site "https://www.chess.com"]

[Event "Titled Tuesday Blitz August 22 Early 2023"]
[White "Coelho, Ramyres Santana"]
[Black "Urbina Perez, Juan Antonio"]
[WhiteFideId "2120690"]
[BlackFideId "2217368"]
[WhiteElo "2319"]
[BlackElo "2475"]
[Result "0-1"]
[Round "4"]
[TimeControl "180+1"]
[Date "2023.08.22"]
[WhiteClock "0:00:04"]
[BlackClock "0:01:27"]
[Board "189"]

1. e4 {[%clk 0:02:59]}  c5 {[%clk 0:02:59]} 2. Nf3 {[%clk 0:02:59]}  d6 {[%clk 0:02:59]} 3. d4 {[%clk 0:02:57]}  cxd4 {[%clk 0:02:59]} 4. Nxd4 {[%clk 0:02:57]}  Nf6 {[%clk 0:02:59]} 5. Nc3 {[%clk 0:02:58]}  a6 {[%clk 0:02:57]} 6. f3 {[%clk 0:02:58]}  e5 {[%clk 0:02:57]} 7. Nb3 {[%clk 0:02:58]}  Be6 {[%clk 0:02:56]} 8. Be3 {[%clk 0:02:59]}  Be7 {[%clk 0:02:57]} 9. Qd2 {[%clk 0:02:56]}  O-O {[%clk 0:02:56]} 10. O-O-O {[%clk 0:02:57]}  Nbd7 {[%clk 0:02:56]} 11. g4 {[%clk 0:02:57]}  b5 {[%clk 0:02:57]} 12. g5 {[%clk 0:02:57]}  Ne8 {[%clk 0:02:56]} 13. Nd5 {[%clk 0:02:57]}  Bxd5 {[%clk 0:02:50]} 14. exd5 {[%clk 0:02:58]}  f5 {[%clk 0:02:46]} 15. gxf6 {[%clk 0:02:56]}  Bxf6 {[%clk 0:02:43]} 16. Na5 {[%clk 0:02:53]}  Rc8 {[%clk 0:02:40]} 17. Nc6 {[%clk 0:02:53]}  Qc7 {[%clk 0:02:41]} 18. Bd3 {[%clk 0:02:50]}  Nb8 {[%clk 0:02:40]} 19. Bf5 {[%clk 0:02:42]}  Nxc6 {[%clk 0:02:30]} 20. Bxc8 {[%clk 0:02:41]}  Qxc8 {[%clk 0:02:31]} 21. dxc6 {[%clk 0:02:41]}  Qxc6 {[%clk 0:02:32]} 22. Qd5+ {[%clk 0:02:41]}  Qxd5 {[%clk 0:02:31]} 23. Rxd5 {[%clk 0:02:41]}  Kf7 {[%clk 0:02:32]} 24. f4 {[%clk 0:02:37]}  Ke6 {[%clk 0:02:31]} 25. Rhd1 {[%clk 0:02:33]}  Rf7 {[%clk 0:02:30]} 26. fxe5 {[%clk 0:02:32]}  Bxe5 {[%clk 0:02:31]} 27. R5d2 {[%clk 0:02:28]}  Rf3 {[%clk 0:02:28]} 28. Re2 {[%clk 0:02:22]}  Nf6 {[%clk 0:02:22]} 29. Kb1 {[%clk 0:02:19]}  Rh3 {[%clk 0:02:06]} 30. Bf4 {[%clk 0:02:14]}  h6 {[%clk 0:02:03]} 31. Bxe5 {[%clk 0:02:10]}  dxe5 {[%clk 0:02:04]} 32. b3 {[%clk 0:01:58]}  Ng4 {[%clk 0:02:04]} 33. Rg1 {[%clk 0:01:50]}  h5 {[%clk 0:02:03]} 34. Rg3 {[%clk 0:01:44]}  Rxg3 {[%clk 0:01:57]} 35. hxg3 {[%clk 0:01:45]}  g5 {[%clk 0:01:57]} 36. c4 {[%clk 0:01:39]}  bxc4 {[%clk 0:01:55]} 37. bxc4 {[%clk 0:01:40]}  h4 {[%clk 0:01:51]} 38. gxh4 {[%clk 0:01:41]}  gxh4 {[%clk 0:01:52]} 39. Kc2 {[%clk 0:01:21]}  h3 {[%clk 0:01:51]} 40. Re1 {[%clk 0:01:07]}  h2 {[%clk 0:01:48]} 41. Rh1 {[%clk 0:01:03]}  Kd6 {[%clk 0:01:48]} 42. Kc3 {[%clk 0:01:00]}  Kc5 {[%clk 0:01:46]} 43. a3 {[%clk 0:01:00]}  e4 {[%clk 0:01:42]} 44. a4 {[%clk 0:00:55]}  a5 {[%clk 0:01:41]} 45. Kb3 {[%clk 0:00:52]}  e3 {[%clk 0:01:41]} 46. Kc3 {[%clk 0:00:52]}  Kc6 {[%clk 0:01:32]} 47. Kb3 {[%clk 0:00:14]}  Kd6 {[%clk 0:01:31]} 48. Kc3 {[%clk 0:00:14]}  Kc5 {[%clk 0:01:31]} 49. Kb3 {[%clk 0:00:12]}  Kd4 {[%clk 0:01:31]} 50. Rd1+ {[%clk 0:00:12]}  Kc5 {[%clk 0:01:29]} 51. Rh1 {[%clk 0:00:12]}  e2 {[%clk 0:01:29]} 52. Kc2 {[%clk 0:00:11]}  Nf2 {[%clk 0:01:27]} 53. Re1 {[%clk 0:00:08]}  h1=Q {[%clk 0:01:27]} 54. Rxh1 {[%clk 0:00:09]}  Nxh1 {[%clk 0:01:28]} 55. Kd2 {[%clk 0:00:10]}  Ng3 {[%clk 0:01:28]} 56. Ke1 {[%clk 0:00:09]}  Kxc4 {[%clk 0:01:27]} 57. Kf2 {[%clk 0:00:09]}  Kb4 {[%clk 0:01:27]} 58. Kxg3 {[%clk 0:00:04]}  e1=Q+ {[%clk 0:01:27]} 0-1


[Site "https://www.chess.com"]

[Event "Titled Tuesday Blitz August 22 Early 2023"]
[White "Rodriguez Santiago, Jaime"]
[Black "Hirneise, Jens"]
[WhiteFideId "3100898"]
[BlackFideId "24614734"]
[WhiteElo "2261"]
[BlackElo "2465"]
[Result "0-1"]
[Round "4"]
[TimeControl "180+1"]
[Date "2023.08.22"]
[WhiteClock "0:00:02"]
[BlackClock "0:01:15"]
[Board "196"]

1. d4 {[%clk 0:03:00]}  d5 {[%clk 0:02:59]} 2. c4 {[%clk 0:03:01]}  dxc4 {[%clk 0:02:58]} 3. e4 {[%clk 0:02:58]}  Nf6 {[%clk 0:02:48]} 4. Nc3 {[%clk 0:02:56]}  e5 {[%clk 0:02:37]} 5. dxe5 {[%clk 0:02:37]}  Qxd1+ {[%clk 0:02:37]} 6. Nxd1 {[%clk 0:02:22]}  Nxe4 {[%clk 0:02:33]} 7. Bxc4 {[%clk 0:02:13]}  Bb4+ {[%clk 0:02:32]} 8. Ke2 {[%clk 0:02:08]}  Bc5 {[%clk 0:02:19]} 9. f3 {[%clk 0:02:03]}  Bxg1 {[%clk 0:02:15]} 10. Rxg1 {[%clk 0:02:00]}  Nc5 {[%clk 0:02:15]} 11. Be3 {[%clk 0:01:55]}  Ne6 {[%clk 0:02:10]} 12. Rc1 {[%clk 0:01:51]}  Nc6 {[%clk 0:02:08]} 13. f4 {[%clk 0:01:40]}  O-O {[%clk 0:02:01]} 14. g3 {[%clk 0:01:22]}  Rd8 {[%clk 0:01:57]} 15. Nc3 {[%clk 0:01:13]}  Ned4+ {[%clk 0:01:57]} 16. Kf2 {[%clk 0:01:12]}  Bg4 {[%clk 0:01:55]} 17. Nd5 {[%clk 0:01:01]}  Ne6 {[%clk 0:01:45]} 18. b4 {[%clk 0:00:54]}  a6 {[%clk 0:01:39]} 19. a4 {[%clk 0:00:52]}  a5 {[%clk 0:01:31]} 20. b5 {[%clk 0:00:50]}  Nb4 {[%clk 0:01:29]} 21. Nxb4 {[%clk 0:00:33]}  axb4 {[%clk 0:01:30]} 22. Bb3 {[%clk 0:00:29]}  Rd3 {[%clk 0:01:29]} 23. Bxe6 {[%clk 0:00:23]}  fxe6 {[%clk 0:01:23]} 24. Rxc7 {[%clk 0:00:20]}  Rxa4 {[%clk 0:01:23]} 25. Rc8+ {[%clk 0:00:03]}  Kf7 {[%clk 0:01:23]} 26. Bc5 {[%clk 0:00:02]}  Ra2+ {[%clk 0:01:15]} 0-1


[Site "https://www.chess.com"]

[Event "Titled Tuesday Blitz August 22 Early 2023"]
[White "KSho99"]
[Black "Serban, Cristian-Stefan"]
[BlackFideId "1241443"]
[WhiteElo "2234"]
[BlackElo "2461"]
[Result "0-1"]
[Round "4"]
[TimeControl "180+1"]
[Date "2023.08.22"]
[WhiteClock "0:01:03"]
[BlackClock "0:01:55"]
[Board "199"]

1. Nf3 {[%clk 0:03:00]}  Nf6 {[%clk 0:02:59]} 2. g3 {[%clk 0:03:01]}  b5 {[%clk 0:03:00]} 3. Bg2 {[%clk 0:02:58]}  Bb7 {[%clk 0:03:00]} 4. O-O {[%clk 0:02:58]}  e6 {[%clk 0:03:00]} 5. d3 {[%clk 0:02:54]}  c5 {[%clk 0:02:59]} 6. a4 {[%clk 0:02:51]}  a6 {[%clk 0:02:59]} 7. e4 {[%clk 0:02:46]}  d6 {[%clk 0:02:57]} 8. Nc3 {[%clk 0:02:37]}  b4 {[%clk 0:02:51]} 9. Ne2 {[%clk 0:02:37]}  a5 {[%clk 0:02:51]} 10. h3 {[%clk 0:02:30]}  Nbd7 {[%clk 0:02:51]} 11. Be3 {[%clk 0:02:29]}  Be7 {[%clk 0:02:51]} 12. Nd2 {[%clk 0:02:28]}  O-O {[%clk 0:02:50]} 13. f4 {[%clk 0:02:28]}  d5 {[%clk 0:02:49]} 14. e5 {[%clk 0:02:24]}  Ne8 {[%clk 0:02:49]} 15. d4 {[%clk 0:02:16]}  Ba6 {[%clk 0:02:38]} 16. Kh1 {[%clk 0:02:03]}  cxd4 {[%clk 0:02:36]} 17. Bxd4 {[%clk 0:02:03]}  Rc8 {[%clk 0:02:32]} 18. Rg1 {[%clk 0:01:57]}  Bxe2 {[%clk 0:02:30]} 19. Qxe2 {[%clk 0:01:57]}  Rxc2 {[%clk 0:02:31]} 20. Qd3 {[%clk 0:01:56]}  Rc8 {[%clk 0:02:30]} 21. g4 {[%clk 0:01:46]}  Bc5 {[%clk 0:02:30]} 22. Nf3 {[%clk 0:01:44]}  Qb6 {[%clk 0:02:21]} 23. Rad1 {[%clk 0:01:32]}  Bxd4 {[%clk 0:02:20]} 24. Nxd4 {[%clk 0:01:32]}  Nc5 {[%clk 0:02:20]} 25. Qg3 {[%clk 0:01:30]}  Nxa4 {[%clk 0:02:17]} 26. f5 {[%clk 0:01:28]}  Nxb2 {[%clk 0:02:16]} 27. fxe6 {[%clk 0:01:24]}  fxe6 {[%clk 0:02:17]} 28. Rd2 {[%clk 0:01:21]}  Nc4 {[%clk 0:02:09]} 29. Rd3 {[%clk 0:01:21]}  Nc7 {[%clk 0:02:05]} 30. Nf3 {[%clk 0:01:18]}  b3 {[%clk 0:02:03]} 31. Ng5 {[%clk 0:01:17]}  b2 {[%clk 0:02:03]} 32. Qh4 {[%clk 0:01:16]}  Qxg1+ {[%clk 0:02:03]} 33. Kxg1 {[%clk 0:01:15]}  b1=Q+ {[%clk 0:02:03]} 34. Kh2 {[%clk 0:01:15]}  Qxd3 {[%clk 0:02:01]} 35. Be4 {[%clk 0:01:15]}  Qxe4 {[%clk 0:01:56]} 36. Nxe4 {[%clk 0:01:14]}  dxe4 {[%clk 0:01:57]} 37. Qe7 {[%clk 0:01:03]}  e3 {[%clk 0:01:55]} 0-1


[Site "https://www.chess.com"]

[Event "Titled Tuesday Blitz August 22 Early 2023"]
[White "Ljukin, Sergei"]
[Black "Thiel, Thomas"]
[WhiteFideId "14102200"]
[BlackFideId "4615964"]
[WhiteElo "2461"]
[BlackElo "2231"]
[Result "0-1"]
[Round "4"]
[TimeControl "180+1"]
[Date "2023.08.22"]
[WhiteClock "0:00:57"]
[BlackClock "0:01:34"]
[Board "201"]

1. e4 {[%clk 0:02:46]}  d5 {[%clk 0:02:58]} 2. exd5 {[%clk 0:02:46]}  Nf6 {[%clk 0:02:57]} 3. d4 {[%clk 0:02:46]}  Nxd5 {[%clk 0:02:56]} 4. c4 {[%clk 0:02:46]}  Nb6 {[%clk 0:02:56]} 5. Nf3 {[%clk 0:02:46]}  g6 {[%clk 0:02:55]} 6. Nc3 {[%clk 0:02:47]}  Bg7 {[%clk 0:02:54]} 7. c5 {[%clk 0:02:48]}  Nd5 {[%clk 0:02:52]} 8. Bc4 {[%clk 0:02:48]}  Nxc3 {[%clk 0:02:51]} 9. bxc3 {[%clk 0:02:48]}  O-O {[%clk 0:02:50]} 10. O-O {[%clk 0:02:49]}  Nc6 {[%clk 0:02:48]} 11. Re1 {[%clk 0:02:42]}  Bg4 {[%clk 0:02:47]} 12. h3 {[%clk 0:02:42]}  Bxf3 {[%clk 0:02:47]} 13. Qxf3 {[%clk 0:02:42]}  Nxd4 {[%clk 0:02:47]} 14. cxd4 {[%clk 0:02:39]}  Qxd4 {[%clk 0:02:48]} 15. Rb1 {[%clk 0:02:16]}  Qxc4 {[%clk 0:02:45]} 16. Rxb7 {[%clk 0:02:16]}  Qxc5 {[%clk 0:02:44]} 17. Ba3 {[%clk 0:02:13]}  Qc3 {[%clk 0:02:43]} 18. Qxc3 {[%clk 0:02:11]}  Bxc3 {[%clk 0:02:44]} 19. Rxe7 {[%clk 0:02:10]}  Ba5 {[%clk 0:02:43]} 20. Bb2 {[%clk 0:02:03]}  Bb6 {[%clk 0:02:31]} 21. Be5 {[%clk 0:02:02]}  Rae8 {[%clk 0:02:09]} 22. Rxe8 {[%clk 0:01:45]}  Rxe8 {[%clk 0:02:10]} 23. Bxc7 {[%clk 0:01:45]}  Re1+ {[%clk 0:02:09]} 24. Kh2 {[%clk 0:01:45]}  Bxf2 {[%clk 0:02:05]} 25. Bg3 {[%clk 0:01:40]}  Bxg3+ {[%clk 0:02:02]} 26. Kxg3 {[%clk 0:01:40]}  Re3+ {[%clk 0:02:03]} 27. Kf2 {[%clk 0:01:38]}  Ra3 {[%clk 0:02:03]} 28. Rb2 {[%clk 0:01:38]}  Kg7 {[%clk 0:02:02]} 29. Rc2 {[%clk 0:01:37]}  Kf6 {[%clk 0:02:00]} 30. Re2 {[%clk 0:01:38]}  Kf5 {[%clk 0:02:00]} 31. Kg1 {[%clk 0:01:37]}  h5 {[%clk 0:01:59]} 32. Kf2 {[%clk 0:01:37]}  h4 {[%clk 0:01:58]} 33. Kg1 {[%clk 0:01:37]}  f6 {[%clk 0:01:58]} 34. Kf2 {[%clk 0:01:38]}  Kf4 {[%clk 0:01:56]} 35. Rb2 {[%clk 0:01:37]}  f5 {[%clk 0:01:54]} 36. Rb4+ {[%clk 0:01:36]}  Kg5 {[%clk 0:01:53]} 37. Rb2 {[%clk 0:01:36]}  Kh5 {[%clk 0:01:53]} 38. Kg1 {[%clk 0:01:33]}  g5 {[%clk 0:01:53]} 39. Rc2 {[%clk 0:01:30]}  g4 {[%clk 0:01:47]} 40. hxg4+ {[%clk 0:01:30]}  Kxg4 {[%clk 0:01:47]} 41. Kh2 {[%clk 0:01:26]}  f4 {[%clk 0:01:47]} 42. Rb2 {[%clk 0:01:21]}  h3 {[%clk 0:01:44]} 43. gxh3+ {[%clk 0:01:20]}  Rxh3+ {[%clk 0:01:43]} 44. Kg2 {[%clk 0:01:20]}  f3+ {[%clk 0:01:42]} 45. Kg1 {[%clk 0:01:16]}  Kg3 {[%clk 0:01:41]} 46. Rb3 {[%clk 0:00:57]}  Rh4 {[%clk 0:01:34]} 0-1


[Site "https://www.chess.com"]